bitfinex-derivatives/quotes_BTCF0:USTF0_20250902
["timestamp","ask_amount","ask_price","bid_price","bid_amount"]
[1756851208671,0.003,111130.0,111120.0,2.12777057]
[1756851209373,0.003,111130.0,111120.0,1.83913617]
[1756851210083,0.003,111130.0,111120.0,1.90992822]
[1756851210464,0.003,111130.0,111120.0,1.99991372]
[1756851210673,0.08096,111180.0,111170.0,0.08217]
[1756851210865,0.41096,111180.0,111170.0,1.23088435]
[1756851211273,0.6995944,111180.0,111170.0,0.39084435]
[1756851211473,0.6995944,111180.0,111170.0,0.94224995]
[1756851211874,0.7065944,111180.0,111170.0,0.94324995]
[1756851212075,0.7095944,111180.0,111170.0,0.94324995]
[1756851212474,0.7095944,111180.0,111170.0,1.23188435]
[1756851212671,0.7095944,111180.0,111170.0,0.94324995]
[1756851212873,1.2482288,111180.0,111170.0,0.90762995]
[1756851213177,1.2482288,111180.0,111170.0,0.94316995]
[1756851213375,1.2482288,111180.0,111170.0,0.10320995]
[1756851213577,1.2482288,111180.0,111170.0,0.90758995]
[1756851213775,1.2482288,111180.0,111170.0,0.91591995]
[1756851214173,1.32085322,111180.0,111170.0,0.91591995]
[1756851215282,1.32085322,111180.0,111170.0,0.95145995]
[1756851215983,1.32085322,111180.0,111170.0,0.91591995]
[1756851216173,1.32085322,111180.0,111170.0,0.07599995]
[1756851216374,1.32085322,111180.0,111170.0,0.84913]
[1756851216774,0.74358442,111180.0,111170.0,0.87298]
[1756851217084,0.74358442,111180.0,111170.0,0.9313]
[1756851217085,1.03221882,111180.0,111170.0,0.9313]
[1756851218682,1.32085322,111180.0,111170.0,0.9313]
[1756851219279,0.42096,111180.0,111170.0,1.2199344]
[1756851221280,0.38721,111180.0,111170.0,1.2199344]
[1756851221481,0.34,111180.0,111170.0,1.2199344]
[1756851221983,0.34,111180.0,111170.0,1.5085688]
[1756851222489,0.34,111180.0,111170.0,1.2199344]
[1756851223278,0.333,111180.0,111170.0,1.2189344]
[1756851223478,0.338,111180.0,111170.0,0.9313]
[1756851223794,0.338,111180.0,111170.0,1.2199344]
[1756851223982,0.7118344,111180.0,111170.0,0.3801344]
[1756851224186,0.7118344,111180.0,111170.0,1.2196944]
[1756851224489,0.7108344,111180.0,111170.0,1.2186944]
[1756851224691,0.7078344,111180.0,111170.0,1.2186944]
[1756851224893,0.7098344,111180.0,111170.0,1.2186944]
[1756851225783,0.7088344,111180.0,111170.0,1.2186944]
[1756851225987,0.4202,111180.0,111170.0,1.2186944]
[1756851226891,0.335,111180.0,111170.0,1.2186944]
[1756851232999,0.4202,111180.0,111170.0,0.93006]
[1756851233188,0.4202,111180.0,111170.0,1.2186944]
[1756851233795,0.4202,111180.0,111170.0,0.93006]
[1756851233989,0.38279,111180.0,111170.0,1.2186944]
[1756851234190,0.3595,111180.0,111170.0,1.2186944]
[1756851235800,0.335,111180.0,111170.0,1.2186944]
[1756851235994,0.335,111180.0,111170.0,1.5073288]
[1756851236598,0.335,111180.0,111170.0,1.2186944]
[1756851237000,0.38279,111180.0,111170.0,0.93006]
[1756851237292,0.38279,111180.0,111170.0,1.2186944]
[1756851237498,0.4202,111180.0,111170.0,1.2186944]
[1756851237702,0.4202,111180.0,111170.0,0.3791344]
[1756851237899,0.4202,111180.0,111170.0,1.2182544]
[1756851239201,0.4202,111180.0,111170.0,1.2182144]
[1756851240202,0.443436,111180.0,111170.0,1.2182144]
[1756851240603,0.7320704,111180.0,111170.0,1.2182144]
[1756851240995,0.443436,111180.0,111170.0,1.2182144]
[1756851241195,0.7320704,111180.0,111170.0,1.2182144]
[1756851241409,0.7088344,111180.0,111170.0,1.2182144]
[1756851241906,0.4202,111180.0,111170.0,1.2182144]
[1756851242100,0.44343667,111180.0,111170.0,1.2182144]
[1756851242301,0.4202,111180.0,111170.0,1.2182144]
[1756851242799,0.7088344,111180.0,111170.0,0.0905]
[1756851243002,1.27070513,111180.0,111170.0,0.89392]
[1756851243196,1.27070513,111180.0,111170.0,0.9303]
[1756851243403,0.98207073,111180.0,111170.0,1.2189344]
[1756851244699,0.98207147,111180.0,111170.0,1.2189344]
[1756851248512,0.69343707,111180.0,111170.0,1.2189344]
[1756851248719,0.98207147,111180.0,111170.0,1.2189344]
[1756851250115,0.98207147,111180.0,111170.0,0.9303]
[1756851250315,0.98207147,111180.0,111170.0,1.2189344]
[1756851253124,0.9588344,111180.0,111170.0,1.2189344]
[1756851254529,0.335,111180.0,111170.0,1.23904626]
[1756851256029,0.335,111180.0,111170.0,1.48904626]
[1756851256230,0.334,111180.0,111170.0,1.48904626]
[1756851256435,0.36896,111180.0,111170.0,1.48904626]
[1756851257334,0.333,111180.0,111170.0,1.48904626]
[1756851259434,0.333,111180.0,111170.0,1.77768066]
[1756851262934,0.37937,111180.0,111170.0,0.65008626]
[1756851263135,0.41433,111180.0,111170.0,1.48848626]
[1756851263435,0.37937,111180.0,111170.0,1.48848626]
[1756851263838,0.35676,111180.0,111170.0,1.48848626]
[1756851264523,0.333,111180.0,111170.0,1.48848626]
[1756851269035,1.833,111180.0,111170.0,1.48848626]
[1756851269233,1.833,111180.0,111170.0,1.77712066]
[1756851269432,1.833,111180.0,111170.0,1.48829977]
[1756851269634,0.333,111180.0,111170.0,1.48829977]
[1756851270138,1.833,111180.0,111170.0,1.48829977]
[1756851272834,1.86796,111180.0,111170.0,1.48829977]
[1756851274141,1.833,111180.0,111170.0,1.48829977]
[1756851277340,1.833,111180.0,111170.0,1.19985186]
[1756851277639,1.86796,111180.0,111170.0,1.48829977]
[1756851278641,1.86796,111180.0,111170.0,1.47996977]
[1756851279134,1.86796,111180.0,111170.0,1.56085714]
[1756851280533,1.833,111180.0,111170.0,1.56085714]
[1756851280934,1.833,111180.0,111170.0,1.84930505]
[1756851281843,1.833,111180.0,111170.0,1.56085714]
[1756851282548,1.833,111180.0,111170.0,1.47996977]
[1756851289146,1.87884,111180.0,111170.0,0.64156977]
[1756851289342,1.91267,111180.0,111170.0,1.47912977]
[1756851289542,1.91267,111180.0,111170.0,0.64156977]
[1756851289843,1.91267,111180.0,111170.0,1.47908977]
[1756851290654,1.87884,111180.0,111170.0,1.47908977]
[1756851290952,1.68267,111180.0,111170.0,1.47908977]
[1756851292346,1.68267,111180.0,111170.0,0.64156977]
[1756851292546,1.68267,111180.0,111170.0,1.47900977]
[1756851294653,1.68267,111180.0,111170.0,1.55989714]
[1756851298048,1.62584,111180.0,111170.0,1.55989714]
[1756851298254,1.65967,111180.0,111170.0,1.55989714]
[1756851299161,1.65967,111180.0,111170.0,1.30989714]
[1756851299562,1.65967,111180.0,111170.0,1.02144923]
[1756851299762,1.65967,111180.0,111170.0,1.30989714]
[1756851300964,1.65967,111180.0,111170.0,3.05213714]
[1756851303267,1.55967,111180.0,111170.0,3.05213714]
[1756851305480,1.55967,111180.0,111170.0,2.21469714]
[1756851305665,1.55967,111180.0,111170.0,3.05181714]
[1756851305866,0.003,111180.0,111170.0,3.54321236]
[1756851306179,0.003,111180.0,111170.0,3.46232499]
[1756851306879,0.02284,111190.0,111180.0,0.0899338]
[1756851307068,0.07967,111200.0,111190.0,0.04743]
[1756851307272,0.21967,111200.0,111190.0,1.17291791]
[1756851307573,0.21967,111200.0,111190.0,1.28917313]
[1756851307973,0.07967,111200.0,111190.0,1.20824791]
[1756851308174,0.07967,111200.0,111190.0,1.21024791]
[1756851309775,0.08067,111200.0,111190.0,0.04943]
[1756851309982,0.08067,111200.0,111190.0,1.17483791]
[1756851310175,0.08067,111200.0,111190.0,0.92211]
[1756851310369,0.08067,111200.0,111190.0,1.21055791]
[1756851311480,0.08067,111200.0,111190.0,1.28135575]
[1756851311681,0.08067,111200.0,111190.0,1.28131575]
[1756851312084,0.08067,111200.0,111190.0,1.21051791]
[1756851312786,0.08067,111200.0,111190.0,0.37359791]
[1756851312975,0.93911791,111200.0,111190.0,0.002]
[1756851313177,0.95549791,111200.0,111190.0,0.83688]
[1756851314385,0.66705,111200.0,111190.0,0.83688]
[1756851314583,0.95549791,111200.0,111190.0,0.83688]
[1756851316287,0.65332,111200.0,111190.0,0.88534]
[1756851316474,0.65332,111200.0,111190.0,1.17378791]
[1756851316679,0.65332,111200.0,111190.0,0.92106]
[1756851319087,0.65332,111200.0,111190.0,1.20950791]
[1756851319580,0.65332,111200.0,111190.0,0.92106]
[1756851322789,0.65332,111200.0,111190.0,1.20950791]
[1756851324695,0.38332,111200.0,111190.0,1.20950791]
[1756851325393,0.13332,111200.0,111190.0,1.20950791]
[1756851328094,0.051,111200.0,111190.0,1.45950791]
[1756851331591,0.051,111200.0,111190.0,1.74771498]
[1756851333099,0.051,111200.0,111190.0,1.45938749]
[1756851333899,0.051,111200.0,111190.0,1.74771498]
[1756851338408,0.051,111200.0,111190.0,1.49771498]
[1756851340404,0.051,111200.0,111190.0,1.74771498]
[1756851342707,0.001,111200.0,111190.0,1.74771498]
[1756851343010,0.001,111200.0,111190.0,1.8286402]
[1756851348706,0.001,111200.0,111190.0,1.9185701]
[1756851349613,0.001,111200.0,111190.0,0.9917602]
[1756851349811,0.001,111200.0,111190.0,1.8278802]
[1756851350211,0.001,111200.0,111190.0,1.9178101]
[1756851351518,0.001,111200.0,111190.0,2.20613759]
[1756851351720,0.001,111200.0,111190.0,2.11620769]
[1756851351911,0.001,111200.0,111190.0,2.20613759]
[1756851352107,0.001,111200.0,111190.0,1.95613759]
[1756851352521,0.001,111200.0,111190.0,1.6678101]
[1756851352718,0.001,111200.0,111190.0,1.95613759]
[1756851352912,0.001,111200.0,111190.0,1.6678101]
[1756851353215,0.001,111200.0,111190.0,2.20613759]
[1756851353814,0.001,111200.0,111190.0,1.9178101]
[1756851354014,0.001,111200.0,111190.0,2.20613759]
[1756851358319,0.001,111200.0,111190.0,2.46993759]
[1756851359218,0.001,111200.0,111190.0,2.21993759]
[1756851359618,0.001,111200.0,111190.0,0.51883512]
[1756851359818,0.001,111200.0,111190.0,2.21961759]
[1756851360414,0.001,111200.0,111190.0,1.9312901]
[1756851360919,0.001,111200.0,111190.0,1.9481501]
[1756851361317,0.001,111200.0,111190.0,1.31975237]
[1756851361518,0.001,111200.0,111190.0,2.15555237]
[1756851361714,0.001,111200.0,111190.0,0.94149498]
[1756851361919,0.001,111200.0,111190.0,1.77725498]
[1756851363114,0.001,111200.0,111190.0,2.15551237]
[1756851364019,0.001,111200.0,111190.0,2.26851418]
[1756851366022,1.52305,111220.0,111210.0,0.08315]
[1756851366214,0.34,111220.0,111210.0,1.80391308]
[1756851366414,0.08007,111230.0,111220.0,0.03541]
[1756851366612,0.40631,111230.0,111220.0,2.76249797]
[1756851366812,1.88315,111230.0,111220.0,2.68989247]
[1756851367010,1.52315,111230.0,111220.0,2.770716]
[1756851367322,1.5001,111230.0,111220.0,2.770716]
[1756851368321,1.53591,111230.0,111220.0,2.770716]
[1756851368522,1.53591,111230.0,111220.0,3.31794851]
[1756851369224,1.53591,111230.0,111220.0,2.40156498]
[1756851369424,1.53591,111230.0,111220.0,3.23808498]
[1756851369824,1.53591,111230.0,111220.0,3.52641247]
[1756851370721,1.53591,111230.0,111220.0,3.53550959]
[1756851371021,1.53591,111230.0,111220.0,3.60802885]
[1756851373920,1.5001,111230.0,111220.0,3.60802885]
[1756851374215,1.53591,111230.0,111220.0,3.60802885]
[1756851376228,1.78591,111230.0,111220.0,2.47508424]
[1756851376429,1.78591,111230.0,111220.0,1.81527926]
[1756851376430,2.38423749,111230.0,111220.0,1.81527926]
[1756851376625,2.09591,111230.0,111220.0,2.57804]
[1756851376827,2.38423749,111230.0,111220.0,1.74276]
[1756851377024,2.38423749,111230.0,111220.0,2.57804]
[1756851378625,2.09691,111230.0,111220.0,2.57804]
[1756851378826,1.84691,111230.0,111220.0,2.86636749]
[1756851379032,1.84691,111230.0,111220.0,1.44598498]
[1756851379223,1.84791,111230.0,111220.0,1.44598498]
[1756851379826,1.84891,111230.0,111220.0,1.44598498]
[1756851380133,2.09891,111230.0,111220.0,1.44598498]
[1756851380832,1.84891,111230.0,111220.0,1.44598498]
[1756851382134,1.84791,111230.0,111220.0,1.44598498]
[1756851382926,1.89663,111230.0,111220.0,0.62543498]
[1756851383130,1.89663,111230.0,111220.0,1.17226749]
[1756851383330,1.89563,111230.0,111220.0,1.17226749]
[1756851383627,2.18395749,111230.0,111220.0,0.33710749]
[1756851383934,2.18395749,111230.0,111220.0,1.14768749]
[1756851384937,1.89563,111230.0,111220.0,1.14768749]
[1756851385135,2.18395749,111230.0,111220.0,1.14768749]
[1756851387641,1.87395749,111230.0,111220.0,1.14768749]
[1756851387838,0.03581,111220.0,111210.0,0.10307061]
[1756851388142,0.08453,111220.0,111210.0,1.2264181]
[1756851388942,0.08453,111220.0,111210.0,1.2274181]
[1756851390648,0.08453,111220.0,111210.0,0.93909061]
[1756851390840,0.08453,111220.0,111210.0,1.2274181]
[1756851391447,0.08453,111220.0,111210.0,1.22736185]
[1756851392340,0.08453,111220.0,111210.0,0.39224185]
[1756851392533,0.10453,111220.0,111210.0,0.39224185]
[1756851392740,0.10453,111220.0,111210.0,1.22724185]
[1756851393647,0.10553,111220.0,111210.0,1.22724185]
[1756851393944,0.40553,111220.0,111210.0,1.22724185]
[1756851394140,0.41553,111220.0,111210.0,1.22724185]
[1756851394348,0.08553,111220.0,111210.0,1.22724185]
[1756851394548,0.10553,111220.0,111210.0,1.22724185]
[1756851395143,0.43553,111220.0,111210.0,1.20610124]
[1756851395352,0.97380124,111220.0,111210.0,0.08283]
[1756851395541,0.97380124,111220.0,111210.0,0.91779]
[1756851395744,0.68553,111220.0,111210.0,0.91779]
[1756851396845,0.68553,111220.0,111210.0,0.91775]
[1756851397052,0.93799124,111220.0,111210.0,0.83492]
[1756851397457,0.93799124,111220.0,111210.0,0.8837]
[1756851397752,0.97380124,111220.0,111210.0,0.8837]
[1756851398451,0.68553,111220.0,111210.0,0.92073]
[1756851400948,0.36553,111220.0,111210.0,0.92073]
[1756851401957,0.36553,111220.0,111210.0,0.93759]
[1756851402854,0.70553,111220.0,111210.0,0.93759]
[1756851412070,0.36553,111220.0,111210.0,0.93759]
[1756851412472,0.33553,111220.0,111210.0,0.93759]
[1756851412669,0.69553,111220.0,111210.0,0.93759]
[1756851419178,0.44553,111220.0,111210.0,0.93759]
[1756851421380,0.75699883,111220.0,111210.0,0.93759]
[1756851421882,0.38507,111220.0,111210.0,1.22586124]
[1756851423580,0.02507,111220.0,111210.0,1.22586124]
[1756851423782,0.001,111220.0,111210.0,1.22586124]
[1756851424480,0.02421039,111220.0,111210.0,1.22586124]
[1756851426184,0.03421039,111220.0,111210.0,1.22586124]
[1756851427882,0.48919039,111220.0,111210.0,0.39094124]
[1756851428082,0.48919039,111220.0,111210.0,1.22514124]
[1756851428472,0.48919039,111220.0,111210.0,0.39094124]
[1756851428883,0.46598,111220.0,111210.0,0.93683]
[1756851431885,0.43027,111220.0,111210.0,0.93683]
[1756851432086,0.011,111220.0,111210.0,1.22510124]
[1756851434590,0.09527,111220.0,111210.0,0.93683]
[1756851434889,0.05965,111220.0,111210.0,1.22510124]
[1756851438791,0.011,111220.0,111210.0,1.22510124]
[1756851441889,0.09527,111220.0,111210.0,1.22510124]
[1756851442191,0.1184826,111220.0,111210.0,1.22510124]
[1756851443093,0.4284826,111220.0,111210.0,0.93651]
[1756851444999,0.4284826,111220.0,111210.0,0.10267]
[1756851445192,0.71675384,111220.0,111210.0,0.10267]
[1756851445390,0.71675384,111220.0,111210.0,0.93643]
[1756851445694,0.94354124,111220.0,111210.0,0.93643]
[1756851445890,0.96675481,111220.0,111210.0,0.93643]
[1756851446696,0.96675481,111220.0,111210.0,0.10267]
[1756851446995,0.96675481,111220.0,111210.0,0.93643]
[1756851449098,0.96675481,111220.0,111210.0,0.93469]
[1756851450692,0.96675481,111220.0,111210.0,0.8994]
[1756851450995,0.96675481,111220.0,111210.0,0.04018]
[1756851451201,0.96675481,111220.0,111210.0,0.8505]
[1756851452292,0.96675481,111220.0,111210.0,0.89814]
[1756851453497,1.25537171,111220.0,111210.0,0.89814]
[1756851453696,1.25537171,111220.0,111210.0,0.93343]
[1756851456504,0.67848357,111220.0,111210.0,0.93343]
[1756851456690,1.25537171,111220.0,111210.0,0.93343]
[1756851456896,0.71692764,111220.0,111210.0,0.93343]
[1756851457091,0.71692764,111220.0,111210.0,1.22187407]
[1756851457902,0.71692764,111220.0,111210.0,0.93343]
[1756851458100,0.42848357,111220.0,111210.0,0.93343]
[1756851458296,0.71692764,111220.0,111210.0,0.93343]
[1756851458502,0.71692764,111220.0,111210.0,0.93331]
[1756851458503,1.00537171,111220.0,111210.0,0.93331]
[1756851461608,1.25537171,111220.0,111210.0,0.89798]
[1756851462004,1.25537171,111220.0,111210.0,0.93298]
[1756851463008,1.25537171,111220.0,111210.0,0.89798]
[1756851464512,1.25537171,111220.0,111210.0,0.8979]
[1756851465202,1.54381578,111220.0,111210.0,0.01686]
[1756851465607,1.54381578,111220.0,111200.0,0.8335]
[1756851465808,0.66083814,111210.0,111200.0,0.91526]
[1756851466106,1.05405171,111210.0,111200.0,0.91516]
[1756851467817,1.05405171,111210.0,111200.0,0.91616]
[1756851468012,1.05805171,111210.0,111200.0,0.91616]
[1756851468415,1.12949137,111210.0,111200.0,0.04776]
[1756851468620,1.13149137,111210.0,111200.0,0.01686]
[1756851468819,1.38149137,111210.0,111200.0,0.01686]
[1756851469319,1.38149137,111210.0,111200.0,0.04004]
[1756851469518,1.38149137,111210.0,111200.0,0.01686]
[1756851470018,1.38149137,111210.0,111200.0,0.04004]
[1756851470921,1.38149137,111210.0,111200.0,0.01686]
[1756851472524,1.38149137,111210.0,111200.0,0.04004]
[1756851474024,1.38149137,111210.0,111200.0,0.01686]
[1756851479330,1.13149137,111210.0,111200.0,0.01686]
[1756851480318,1.38776323,111210.0,111200.0,0.06362]
[1756851480524,0.8430473,111210.0,111200.0,0.09862]
[1756851480831,0.8430473,111210.0,111200.0,0.11281]
[1756851482133,0.8430473,111210.0,111200.0,0.09862]
[1756851483631,0.8430473,111210.0,111200.0,0.11281]
[1756851484029,0.8430473,111210.0,111200.0,0.09862]
[1756851484428,1.13149137,111210.0,111200.0,0.09862]
[1756851484627,1.13149137,111210.0,111200.0,0.06362]
[1756851484826,1.13149137,111210.0,111200.0,0.04004]
[1756851485031,1.13149137,111210.0,111200.0,0.01686]
[1756851485634,1.13149137,111210.0,111200.0,0.06362]
[1756851486336,1.13149137,111210.0,111200.0,0.09862]
[1756851486535,1.96449137,111210.0,111200.0,0.09862]
[1756851486737,1.13149137,111210.0,111200.0,0.09862]
[1756851487331,1.13149137,111210.0,111200.0,0.06362]
[1756851487530,1.13149137,111210.0,111200.0,0.04004]
[1756851487831,1.13149137,111210.0,111200.0,0.06362]
[1756851488033,1.13149137,111210.0,111200.0,0.09862]
[1756851489138,1.13149137,111210.0,111200.0,0.01686]
[1756851489738,1.13149137,111210.0,111190.0,0.0001]
[1756851489925,2.15900814,111200.0,111190.0,0.04714]
[1756851490130,3.67358578,111200.0,111180.0,0.03611]
[1756851490332,0.37056407,111190.0,111180.0,0.08315]
[1756851490636,0.76377764,111190.0,111180.0,0.08305]
[1756851491335,1.05222171,111190.0,111180.0,0.04704]
[1756851491536,0.08266,111180.0,111170.0,0.084]
[1756851491838,1.02276171,111180.0,111170.0,0.0839]
[1756851492837,1.02276171,111180.0,111170.0,0.10077]
[1756851493135,1.03174039,111180.0,111170.0,0.10077]
[1756851493941,1.03174039,111180.0,111170.0,0.10177]
[1756851498444,1.03174039,111180.0,111170.0,0.06576]
[1756851498637,1.03174039,111180.0,111170.0,0.10177]
[1756851502546,1.03165239,111180.0,111170.0,0.10177]
[1756851504444,1.03165239,111180.0,111170.0,0.06576]
[1756851505546,1.03165239,111180.0,111170.0,0.04133]
[1756851505746,1.32009646,111180.0,111170.0,0.01787]
[1756851505947,1.03165239,111180.0,111170.0,0.01787]
[1756851509442,1.32009646,111180.0,111170.0,0.01787]
[1756851509850,1.03165239,111180.0,111170.0,0.01787]
[1756851510651,1.57009646,111180.0,111170.0,0.01787]
[1756851512055,2.40269646,111180.0,111170.0,0.01787]
[1756851513558,2.11470509,111180.0,111170.0,0.01787]
[1756851516460,0.70476425,111180.0,111170.0,0.06576]
[1756851516848,1.28210509,111180.0,111170.0,0.01787]
[1756851518467,1.28210509,111180.0,111170.0,0.10196]
[1756851518765,1.28210509,111180.0,111170.0,0.06576]
[1756851518965,1.28210509,111180.0,111170.0,0.10196]
[1756851519156,0.99343467,111180.0,111170.0,0.10196]
[1756851519355,0.74343467,111180.0,111170.0,0.10196]
[1756851520268,1.03210509,111180.0,111170.0,0.01787]
[1756851521763,1.03210509,111180.0,111170.0,0.06611]
[1756851521962,1.03210509,111180.0,111170.0,0.10231]
[1756851522262,1.03210509,111180.0,111170.0,0.01787]
[1756851523167,1.03210509,111180.0,111170.0,0.04137]
[1756851524367,1.03210509,111180.0,111170.0,0.01787]
[1756851525965,1.03210509,111180.0,111170.0,0.04137]
[1756851526266,1.03210509,111180.0,111170.0,0.01787]
[1756851526670,1.03210509,111180.0,111170.0,0.04137]
[1756851526967,1.03210509,111180.0,111170.0,0.01787]
[1756851527971,1.03210509,111180.0,111170.0,0.04137]
[1756851528372,1.03210509,111180.0,111170.0,0.01787]
[1756851530269,1.03210509,111180.0,111160.0,0.0001]
[1756851530475,1.86394042,111170.0,111160.0,0.0001]
[1756851530774,0.07527,111160.0,111150.0,0.08454]
[1756851530960,0.75706599,111160.0,111150.0,0.08444]
[1756851531371,0.75706599,111160.0,111140.0,0.0363]
[1756851531671,0.64961084,111150.0,111140.0,0.91678]
[1756851531872,0.69394042,111150.0,111140.0,0.91668]
[1756851532069,0.71708215,111150.0,111140.0,0.91668]
[1756851532276,0.69394042,111150.0,111140.0,0.91668]
[1756851532471,0.69394042,111150.0,111140.0,0.92068]
[1756851532776,0.71707548,111150.0,111140.0,0.92068]
[1756851533075,0.40527,111150.0,111140.0,0.92068]
[1756851533268,0.69394042,111150.0,111140.0,0.92068]
[1756851533774,0.69394042,111150.0,111140.0,0.92468]
[1756851533980,0.40527,111150.0,111140.0,0.92468]
[1756851534276,0.69394042,111150.0,111140.0,0.92468]
[1756851534478,0.69394042,111150.0,111140.0,0.92068]
[1756851534773,0.69394042,111150.0,111140.0,0.92268]
[1756851535466,0.76672126,111150.0,111140.0,0.92268]
[1756851536472,0.76672126,111150.0,111140.0,0.09044]
[1756851536473,1.05539168,111150.0,111140.0,0.09044]
[1756851536672,1.07851162,111150.0,111140.0,0.09044]
[1756851538977,0.7898412,111150.0,111140.0,0.09044]
[1756851539176,0.76672126,111150.0,111140.0,0.08844]
[1756851539474,0.76672126,111150.0,111140.0,0.08944]
[1756851539775,0.76672126,111150.0,111140.0,0.08544]
[1756851539973,0.76872126,111150.0,111140.0,0.08544]
[1756851540475,0.76672126,111150.0,111140.0,0.08544]
[1756851540673,0.48105084,111150.0,111140.0,0.08544]
[1756851540876,0.76972126,111150.0,111140.0,0.33544]
[1756851541678,0.76972126,111150.0,111140.0,0.33444]
[1756851543768,0.79282413,111150.0,111140.0,0.33444]
[1756851546071,0.79282413,111150.0,111140.0,0.2735]
[1756851546283,1.08149455,111150.0,111140.0,0.29824]
[1756851546574,1.08149455,111150.0,111140.0,0.33444]
[1756851546765,0.79282413,111150.0,111140.0,0.33444]
[1756851547684,0.50415371,111150.0,111140.0,0.33444]
[1756851547876,0.79282413,111150.0,111140.0,0.33444]
[1756851548375,1.08149455,111150.0,111140.0,0.33444]
[1756851548578,1.08149455,111150.0,111140.0,1.16648]
[1756851549570,0.79282413,111150.0,111140.0,1.16648]
[1756851549975,0.45515084,111150.0,111140.0,1.45515042]
[1756851550178,0.40578084,111150.0,111140.0,1.45515042]
[1756851550669,0.40578084,111150.0,111140.0,1.16648]
[1756851550869,0.69445126,111150.0,111140.0,1.16648]
[1756851551272,0.72035126,111150.0,111140.0,1.16648]
[1756851551678,0.76801126,111150.0,111140.0,0.33444]
[1756851551978,0.76801126,111150.0,111140.0,1.16644]
[1756851554279,0.76801126,111150.0,111140.0,0.08444]
[1756851554481,0.76801126,111150.0,111140.0,0.9164]
[1756851556181,0.7911302,111150.0,111140.0,0.9164]
[1756851556676,0.76801126,111150.0,111140.0,0.9164]
[1756851557180,0.79113453,111150.0,111140.0,0.9164]
[1756851559783,0.50246411,111150.0,111140.0,0.9164]
[1756851559978,0.79113453,111150.0,111140.0,0.9164]
[1756851568889,0.79116705,111150.0,111140.0,0.9164]
[1756851571182,0.79116705,111150.0,111140.0,0.08444]
[1756851571383,0.79116705,111150.0,111140.0,0.91604]
[1756851572788,0.79116705,111150.0,111140.0,0.08444]
[1756851572988,1.07983747,111150.0,111140.0,0.8798]
[1756851573391,0.0259,111140.0,111130.0,0.08204]
[1756851573689,0.98118416,111140.0,111130.0,0.9135]
[1756851574493,0.98118416,111140.0,111130.0,0.9145]
[1756851575095,0.98118416,111140.0,111130.0,0.08294]
[1756851575299,0.98118416,111140.0,111130.0,0.87977]
[1756851575891,1.54313634,111140.0,111130.0,0.04825]
[1756851576080,1.54313634,111140.0,111130.0,0.83248]
[1756851577082,1.54313634,111140.0,111130.0,0.001]
[1756851579109,1.00432426,111140.0,111130.0,0.04915]
[1756851579609,1.00432426,111140.0,111130.0,0.08475]
[1756851579910,1.00432426,111140.0,111130.0,0.04915]
[1756851581410,1.00432426,111140.0,111130.0,0.02456]
[1756851582306,1.00432426,111140.0,111130.0,0.001]
[1756851582506,1.00432426,111140.0,111130.0,0.02456]
[1756851584108,1.00432426,111140.0,111130.0,0.001]
[1756851584814,1.00432426,111140.0,111130.0,0.04744]
[1756851585418,1.00432426,111140.0,111130.0,0.02456]
[1756851586715,1.00432426,111140.0,111130.0,0.001]
[1756851586916,1.00432426,111140.0,111130.0,0.04744]
[1756851587116,1.00432426,111140.0,111130.0,0.001]
[1756851587414,1.00432426,111140.0,111130.0,0.02456]
[1756851589214,1.00432426,111140.0,111130.0,0.04744]
[1756851591214,1.29313634,111140.0,111130.0,0.04744]
[1756851591516,1.00432426,111140.0,111130.0,0.04744]
[1756851595516,1.29313634,111140.0,111130.0,0.04744]
[1756851596217,1.29313634,111140.0,111130.0,0.02456]
[1756851597521,1.00432426,111140.0,111130.0,0.02456]
[1756851597707,0.4267001,111140.0,111130.0,0.04744]
[1756851597912,0.4267001,111140.0,111130.0,0.08304]
[1756851598214,1.00432426,111140.0,111130.0,0.08304]
[1756851598915,0.97842426,111140.0,111130.0,0.33304]
[1756851599219,0.64195218,111140.0,111130.0,0.37185208]
[1756851599421,0.64195218,111140.0,111130.0,0.62185208]
[1756851599719,0.61881208,111140.0,111130.0,0.37185208]
[1756851601322,0.33,111140.0,111130.0,0.08304]
[1756851601523,0.61881208,111140.0,111130.0,0.37185208]
[1756851604429,0.33,111140.0,111130.0,0.62185208]
[1756851604926,0.61881208,111140.0,111130.0,0.62185208]
[1756851606228,0.66605208,111140.0,111130.0,0.62185208]
[1756851607628,0.69195208,111140.0,111130.0,0.62185208]
[1756851608830,0.64131208,111140.0,111130.0,0.62185208]
[1756851609333,0.33,111140.0,111130.0,0.62185208]
[1756851609721,0.35261,111140.0,111130.0,0.62185208]
[1756851610330,0.33,111140.0,111130.0,0.62185208]
[1756851615230,0.35261,111140.0,111130.0,0.62185208]
[1756851615934,0.37711,111140.0,111130.0,0.62185208]
[1756851616122,0.69182208,111140.0,111130.0,0.33304]
[1756851616324,0.40301,111140.0,111130.0,1.45241208]
[1756851616620,0.69182208,111140.0,111130.0,1.20241208]
[1756851618133,0.69182208,111140.0,111130.0,0.37185208]
[1756851618334,0.69182208,111140.0,111130.0,1.20237208]
[1756851619136,0.98063416,111140.0,111130.0,0.08304]
[1756851619441,1.23063416,111140.0,111130.0,0.08304]
[1756851619620,1.23063416,111140.0,111130.0,0.91348]
[1756851619822,1.23063416,111140.0,111130.0,0.87788]
[1756851620225,1.23063416,111140.0,111130.0,0.04744]
[1756851620425,1.23063416,111140.0,111130.0,0.001]
[1756851620626,1.23063416,111140.0,111130.0,0.8314]
[1756851620926,1.23063416,111140.0,111130.0,0.87967]
[1756851621631,0.69182208,111140.0,111130.0,0.91513]
[1756851621832,0.69182208,111140.0,111130.0,1.20394208]
[1756851622032,0.40301,111140.0,111130.0,0.91513]
[1756851622232,0.69182208,111140.0,111130.0,0.91513]
[1756851624537,0.98063416,111140.0,111130.0,0.91513]
[1756851629242,0.69182208,111140.0,111130.0,0.91513]
[1756851630040,0.37711,111140.0,111130.0,0.91513]
[1756851630231,0.66592208,111140.0,111130.0,1.20394208]
[1756851631437,0.69182208,111140.0,111130.0,1.20394208]
[1756851633442,0.33,111140.0,111130.0,1.20394208]
[1756851633941,0.61881208,111140.0,111130.0,1.20394208]